fUST/lending_fUST_20241030
["ID","MTS","AMOUNT","RATE_DAILY","PERIOD"]
[341033439,1730292076395,-500.0,0.00027397,5]
[341033440,1730292076427,-501.91102881,0.00027397,5]
[341033441,1730292076458,-505.22513884,0.00027397,5]
[341033442,1730292076492,-500.0,0.00027397,5]
[341033443,1730292076524,-500.0,0.00027397,5]
[341033444,1730292076557,-504.49008035,0.00027397,5]
[341033445,1730292076588,-502.56519857,0.00027397,5]
[341033446,1730292076621,-522.92967967,0.00027397,5]
[341033447,1730292076653,-504.46078254,0.00027397,5]
[341033448,1730292076686,-503.36700555,0.00027397,5]
[341033449,1730292076717,-503.37123828,0.00027397,5]
[341033450,1730292076753,-156.83706404,0.00027397,5]
[341033452,1730292198520,-2521.50864525,0.00027297,2]
[341033453,1730292198555,-5000.0,0.00027396,2]
[341033454,1730292198587,-509.74239942,0.00027397,5]
[341033455,1730292198622,-500.0,0.00027397,5]
[341033456,1730292198656,-500.0,0.00027397,5]
[341033457,1730292198696,-500.0,0.00027397,5]
[341033458,1730292198727,-500.0,0.00027397,2]
[341033459,1730292198759,-642.39,0.00027397,5]
[341033460,1730292198794,-500.0,0.00027397,5]
[341033461,1730292198829,-500.0,0.00027397,5]
[341033462,1730292198867,-500.0,0.00027397,5]
[341033463,1730292198901,-396.72019535,0.00027397,5]
[341033464,1730292198941,-500.0,0.00027397,5]
[341033465,1730292198976,-500.0,0.00027397,5]
[341033466,1730292199008,-500.0,0.00027397,5]
[341033467,1730292199039,-505.34082938,0.00027397,5]
[341033468,1730292199072,-500.0,0.00027397,5]
[341033469,1730292199104,-507.85176552,0.00027397,5]
[341033470,1730292199138,-618.52,0.00027397,5]
[341033471,1730292199171,-500.0,0.00027397,5]
[341033472,1730292199207,-192.336593,0.00027397,7]
[341033473,1730292199239,-505.35023857,0.00027397,5]
[341033474,1730292199272,-192.336593,0.00027397,7]
[341033475,1730292199305,-503.37476114,0.00027397,5]
[341033476,1730292199338,-500.0,0.00027397,5]
[341033477,1730292199372,-500.0,0.00027397,5]
[341033478,1730292199407,-500.0,0.00027397,5]
[341033479,1730292199442,-500.0,0.00027397,5]
[341033480,1730292199475,-502.14473878,0.00027397,5]
[341033481,1730292199507,-540.19,0.00027397,5]
[341033482,1730292199640,-500.0,0.00027397,5]
[341033483,1730292199676,-500.0,0.00027397,5]
[341033484,1730292199708,-500.0,0.00027397,5]
[341033485,1730292199744,-500.0,0.00027397,5]
[341033486,1730292199778,-580.71513947,0.00027397,5]
[341033487,1730292199813,-500.0,0.00027397,5]
[341033488,1730292199845,-500.0,0.00027397,5]
[341033489,1730292199878,-500.0,0.00027397,5]
[341033490,1730292199911,-500.0,0.00027397,5]
[341033491,1730292199944,-500.0,0.00027397,5]
[341033492,1730292199976,-500.0,0.00027397,5]
[341033493,1730292200011,-500.0,0.00027397,5]
[341033494,1730292200045,-500.0,0.00027397,5]
[341033496,1730292200078,-500.0,0.00027397,5]
[341033497,1730292200111,-500.0,0.00027397,5]
[341033498,1730292200147,-500.0,0.00027397,5]
[341033499,1730292200183,-500.0,0.00027397,5]
[341033500,1730292200216,-281.47810112,0.00027397,5]
[341033504,1730292430913,-3000.0,0.00025813,2]
[341033505,1730292430947,-164.480358,0.00026319,2]
[341033506,1730292430981,-16835.519642,0.0002653,2]
[341033507,1730292495825,-5000.0,0.00026529,2]
[341033508,1730292495860,-8064.480358,0.0002653,2]
[341033509,1730292495895,-2206.32006462,0.00027297,2]
[341033510,1730292495931,-577.4828911,0.00027396,2]
[341033511,1730292495967,-790.29794079,0.00027397,2]
[341033512,1730292496002,-643.87,0.00027397,5]
[341033513,1730292496034,-500.0,0.00027397,5]
[341033514,1730292496067,-500.0,0.00027397,5]
[341033515,1730292496100,-500.0,0.00027397,5]
[341033516,1730292496132,-500.0,0.00027397,5]
[341033517,1730292496164,-507.44764288,0.00027397,5]
[341033518,1730292496196,-210.10110261,0.00027397,5]
[341033519,1730292536927,-166.666666,0.00025814,2]
[341033520,1730292536968,-292.08947615,0.00027397,5]
[341033521,1730292537004,-503.23997793,0.00027397,5]
[341033522,1730292537043,-503.67810419,0.00027397,5]
[341033523,1730292537076,-502.04091463,0.00027397,5]
[341033524,1730292537112,-506.69352662,0.00027397,5]
[341033525,1730292537145,-500.0,0.00027397,5]
[341033526,1730292537178,-294.62554953,0.00027397,5]
[341033527,1730292537213,-502.10999426,0.00027397,5]
[341033528,1730292537246,-500.0,0.00027397,5]
[341033529,1730292537279,-559.382481,0.00027397,5]
[341033530,1730292537311,-506.52662423,0.00027397,5]
[341033531,1730292537344,-509.31217965,0.00027397,5]
[341033532,1730292537378,-504.24566358,0.00027397,5]
[341033533,1730292537413,-505.57666064,0.00027397,5]
[341033534,1730292537445,-202.591345,0.00027397,5]
[341033535,1730292537484,-511.63196456,0.00027397,5]
[341033536,1730292537517,-500.0,0.00027397,5]
[341033537,1730292537552,-597.54477943,0.00027397,5]
[341033538,1730292537585,-500.0,0.00027397,5]
[341033539,1730292537618,-500.0,0.00027397,5]
[341033540,1730292537650,-500.0,0.00027397,5]
[341033541,1730292537683,-500.0,0.00027397,5]
[341033542,1730292537715,-500.0,0.00027397,5]
[341033543,1730292537748,-500.0,0.00027397,5]
[341033544,1730292537780,-500.0,0.00027397,5]
[341033545,1730292537811,-500.0,0.00027397,5]
[341033546,1730292537842,-601.5941456,0.00027397,5]
[341033547,1730292537872,-502.39459844,0.00027397,5]
[341033548,1730292537904,-510.06812836,0.00027397,5]
[341033549,1730292537939,-556.55695908,0.00027397,5]
[341033550,1730292537971,-203.32,0.00027397,5]
[341033551,1730292538003,-506.40538669,0.00027397,5]
[341033552,1730292538133,-354.87871652,0.00027397,5]
[341033553,1730292538187,-500.0,0.00027397,5]
[341033554,1730292538221,-500.0,0.00027397,5]
[341033555,1730292538253,-500.0,0.00027397,5]
[341033556,1730292538284,-428.88,0.00027397,5]
[341033557,1730292538317,-500.0,0.00027397,5]
[341033558,1730292538350,-500.0,0.00027397,5]
[341033559,1730292538382,-500.0,0.00027397,5]
[341033560,1730292538414,-498.13020103,0.00027397,5]
[341033561,1730292538447,-169.81595688,0.00027397,5]
[341033608,1730292631917,-250.0,0.0002626,2]
[341033610,1730292631926,-1930.53005649,0.00027297,2]
[341033612,1730292631937,-505.00537406,0.00027397,5]
[341033614,1730292631947,-612.16,0.00027397,5]
[341033616,1730292631958,-500.0,0.00027397,5]
[341033618,1730292631969,-503.20444535,0.00027397,5]
[341033620,1730292631978,-503.39909798,0.00027397,5]
[341033622,1730292631989,-500.0,0.00027397,5]
[341033624,1730292631999,-500.0,0.00027397,5]
[341033626,1730292632009,-500.0,0.00027397,5]
[341033628,1730292632020,-211.37465811,0.00027397,5]
[341033631,1730292632038,-288.62534189,0.00027397,5]
[341033633,1730292632049,-71.27465811,0.00027397,5]
[341033920,1730292642989,-21.43604714,0.00027397,5]
[341033926,1730292645938,-407.28929475,0.00027397,5]
[341033927,1730292645950,-374.78,0.00027397,5]
[341033928,1730292645962,-503.25652373,0.00027397,5]
[341033929,1730292645974,-508.17437354,0.00027397,5]
[341033930,1730292645985,-504.75121509,0.00027397,5]
[341033931,1730292645994,-500.0,0.00027397,5]
[341033932,1730292646004,-580.99515044,0.00027397,5]
[341033933,1730292646015,-385.71242789,0.00027397,5]
[341033934,1730292646028,-114.28757211,0.00027397,5]
[341033935,1730292646039,-500.0,0.00027397,5]
[341033936,1730292646050,-580.18,0.00027397,5]
[341033937,1730292646060,-202.01293783,0.00027397,5]
[341033938,1730292646070,-500.0,0.00027397,5]
[341033939,1730292646080,-503.1092356,0.00027397,5]
[341033940,1730292646090,-502.12136493,0.00027397,5]
[341033941,1730292646100,-500.0,0.00027397,5]
[341033942,1730292646110,-500.0,0.00027397,5]
[341033943,1730292646120,-558.71251581,0.00027397,5]
[341033944,1730292646132,-500.0,0.00027397,5]
[341033945,1730292646141,-500.0,0.00027397,5]
[341033946,1730292646151,-500.0,0.00027397,5]
[341033947,1730292646162,-500.0,0.00027397,5]
[341033948,1730292646172,-151.0,0.00027397,7]
[341033949,1730292646181,-552.03328311,0.00027397,5]
[341033950,1730292646191,-500.0,0.00027397,5]
[341033951,1730292646201,-500.0,0.00027397,5]
[341033952,1730292646211,-500.0,0.00027397,5]
[341033953,1730292646221,-500.0,0.00027397,5]
[341033954,1730292646233,-300.0,0.00027397,5]
[341033955,1730292646243,-156.09,0.00027397,5]
[341033956,1730292646254,-500.0,0.00027397,5]
[341033957,1730292646266,-500.0,0.00027397,5]
[341033958,1730292646276,-503.18866838,0.00027397,5]
[341033959,1730292646286,-504.38383198,0.00027397,5]
[341033960,1730292646297,-151.0,0.00027397,7]
[341033961,1730292646307,-501.53584851,0.00027397,5]
[341033962,1730292646316,-607.66233643,0.00027397,5]
[341033963,1730292646326,-500.0,0.00027397,5]
[341033964,1730292646336,-338.82,0.00027397,5]
[341033965,1730292646347,-500.0,0.00027397,5]
[341033966,1730292646359,-500.0,0.00027397,5]
[341033967,1730292646369,-500.0,0.00027397,5]
[341033968,1730292646382,-535.71,0.00027397,5]
[341033969,1730292646391,-500.0,0.00027397,5]
[341033970,1730292646401,-500.0,0.00027397,5]
[341033971,1730292646412,-500.0,0.00027397,5]
[341033972,1730292646424,-510.02,0.00027397,5]
[341033973,1730292646436,-504.08651756,0.00027397,5]
[341033974,1730292646446,-500.0,0.00027397,5]
[341033975,1730292646456,-151.0,0.00027397,7]
[341033976,1730292646465,-504.40857398,0.00027397,5]
[341033977,1730292646476,-500.0,0.00027397,5]
[341033978,1730292646486,-167.21,0.00027397,5]
[341033979,1730292646496,-500.0,0.00027397,5]
[341033980,1730292646507,-274.47,0.00027397,5]
[341033981,1730292646517,-500.0,0.00027397,5]
[341033982,1730292646527,-500.0,0.00027397,5]
[341033983,1730292646541,-508.74857198,0.00027397,5]
[341033984,1730292646551,-319.12978876,0.00027397,5]
[341033985,1730292646563,-180.87021124,0.00027397,5]
[341033986,1730292646573,-218.52189888,0.00027397,5]
[341033987,1730292646583,-500.0,0.00027397,5]
[341033988,1730292646594,-500.0,0.00027397,5]
[341033989,1730292646604,-500.0,0.00027397,5]
[341033990,1730292646614,-289.66,0.00027397,5]
[341033991,1730292646623,-500.0,0.00027397,5]
[341033992,1730292646634,-500.0,0.00027397,5]
[341033993,1730292646644,-500.0,0.00027397,5]
[341033994,1730292646654,-500.0,0.00027397,5]
[341033995,1730292646665,-500.0,0.00027397,5]
[341033996,1730292646675,-471.94788988,0.00027397,5]
[341033998,1730292788852,166.321594,0.00013973,2]
[341033999,1730292792131,199.84,0.00020113,2]
[341034001,1730293448191,157.593727,0.00013973,2]
[341034002,1730293677558,-157.593727,0.00021661,2]
[341034003,1730293677591,-161.4,0.0002223,2]
[341034004,1730293677625,-166.748309,0.00022461,2]
[341034005,1730293677658,-161.422,0.0002301,30]
[341034006,1730293677690,-166.748309,0.00023226,2]
[341034007,1730293677721,-2812.4869935,0.00023262,2]
[341034008,1730293677754,-197.001629,0.00023361,2]
[341034009,1730293677786,-161.611,0.0002379,30]
[341034010,1730293677819,-300.0,0.00023848,2]
[341034011,1730293677851,-300.0,0.00023848,2]
[341034012,1730293677897,-11970.7506574,0.00023849,2]
[341034013,1730293677934,-197.001629,0.00023969,2]
[341034014,1730293677971,-166.748309,0.00023992,2]
[341034015,1730293678004,-1871.57799974,0.00024478,2]
[341034016,1730293678039,-5000.0,0.00024568,2]
[341034017,1730293678074,-5000.0,0.00024569,2]
[341034018,1730293678106,-19568.0703882,0.0002457,2]
[341034019,1730293678140,-197.001629,0.00024578,2]
[341034020,1730293678172,-166.748309,0.00024757,2]
[341034021,1730293678206,-465.05211291,0.00024948,2]
[341034022,1730293678238,-150.0,0.00025,2]
[341034023,1730293678271,-166.748309,0.00025523,2]
[341034024,1730293678303,-400.0,0.00025866,2]
[341034025,1730293678336,-1871.57799969,0.00026324,2]
[341034026,1730293678369,-158.0,0.00027,2]
[341034027,1730293678401,-8265.71068956,0.00027,5]
[341034111,1730293832045,-3596.7,0.00027,5]
[341034115,1730293832059,-13599.57155055,0.00027,5]
[341034119,1730293832071,-500.00654484,0.00027,5]
[341034542,1730293838204,-517.6807511,0.00027,5]
[341034549,1730293838261,-6228.87644412,0.00027,5]
[341034685,1730293840166,-1988.57401983,0.00027,5]
[341034686,1730293840176,-1542.42113346,0.00027159,2]
[341034687,1730293840185,-766.84539691,0.00027296,2]
[341034698,1730293845295,-636.83810291,0.00027296,2]
[341034699,1730293845306,-5000.0,0.00027396,2]
[341034700,1730293845315,-5000.0,0.00027396,2]
[341034701,1730293845326,-180.16321298,0.00027396,2]
[341034702,1730293845334,-500.0,0.00027396,2]
[341034703,1730293845344,-500.0,0.00027396,2]
[341034704,1730293845353,-500.0,0.00027396,2]
[341034705,1730293845363,-500.0,0.00027396,2]
[341034706,1730293845372,-500.0,0.00027396,2]
[341034707,1730293845382,-236.57390439,0.00027396,2]
[341034708,1730293845391,-500.0,0.00027396,2]
[341034709,1730293845400,-500.0,0.00027396,2]
[341034710,1730293845409,-260.9890752,0.00027397,5]
[341034711,1730293845419,-500.0,0.00027397,5]
[341034712,1730293845428,-500.0,0.00027397,5]
[341034713,1730293845437,-286.51432523,0.00027397,5]
[341034714,1730293845447,-500.0,0.00027397,5]
[341034715,1730293845456,-504.97924414,0.00027397,5]
[341034716,1730293845465,-503.23938775,0.00027397,5]
[341034717,1730293845475,-502.09697911,0.00027397,5]
[341034718,1730293845484,-501.60043827,0.00027397,5]
[341034719,1730293845498,-500.0,0.00027397,5]
[341034720,1730293845507,-500.0,0.00027397,5]
[341034721,1730293845516,-505.58231885,0.00027397,5]
[341034722,1730293845526,-503.20799497,0.00027397,5]
[341034723,1730293845534,-520.95312351,0.00027397,5]
[341034724,1730293845544,-501.76867897,0.00027397,5]
[341034725,1730293845554,-504.74211134,0.00027397,5]
[341034726,1730293845563,-551.0,0.00027397,5]
[341034727,1730293845572,-503.34910823,0.00027397,5]
[341034728,1730293845581,-500.0,0.00027397,5]
[341034729,1730293845595,-453.03,0.00027397,5]
[341034730,1730293845604,-502.53713553,0.00027397,5]
[341034731,1730293845613,-508.70349571,0.00027397,5]
[341034732,1730293845622,-252.74454548,0.00027397,5]
[341034733,1730293845632,-502.86944287,0.00027397,5]
[341034734,1730293845641,-238.49839345,0.00027397,5]
[341034735,1730293845653,-445.4,0.00027397,5]
[341034736,1730293845663,-307.09,0.00027397,5]
[341034737,1730293845672,-618.08,0.00027397,5]
[341034738,1730293845681,-338.17,0.00027397,5]
[341034739,1730293845690,-500.0,0.00027397,5]
[341034740,1730293845699,-204.79,0.00027397,5]
[341034741,1730293845709,-204.86,0.00027397,5]
[341034742,1730293845719,-151.0,0.00027397,7]
[341034743,1730293845728,-151.0,0.00027397,7]
[341034744,1730293845739,-500.0,0.00027397,5]
[341034745,1730293845748,-500.0,0.00027397,5]
[341034747,1730293845757,-483.89,0.00027397,5]
[341034749,1730293845768,-176.94036431,0.00027397,5]
[341034752,1730293845777,-363.57425,0.00027397,7]
[341034754,1730293845787,-363.57425,0.00027397,7]
[341034756,1730293845797,-500.0,0.00027397,5]
[341034757,1730293845807,-151.0,0.00027397,7]
[341034759,1730293845817,-300.255381,0.00027397,7]
[341034761,1730293845826,-500.0,0.00027397,5]
[341034762,1730293845836,-500.0,0.00027397,5]
[341034763,1730293845846,-500.0,0.00027397,5]
[341034764,1730293845858,-500.0,0.00027397,5]
[341034766,1730293845869,-151.0,0.00027397,7]
[341034767,1730293845879,-500.0,0.00027397,5]
[341034768,1730293845890,-500.0,0.00027397,5]
[341034769,1730293845903,-151.0,0.00027397,7]
[341034770,1730293845918,-500.0,0.00027397,5]
[341034771,1730293845929,-500.0,0.00027397,5]
[341034772,1730293845939,-454.85,0.00027397,5]
[341034773,1730293845948,-500.0,0.00027397,2]
[341034774,1730293845959,-500.0,0.00027397,2]
[341034775,1730293845968,-500.0,0.00027397,2]
[341034776,1730293845978,-265.05,0.00027397,5]
[341034777,1730293845987,-151.0,0.00027397,7]
[341034778,1730293845997,-151.0,0.00027397,7]
[341034779,1730293846006,-167.28,0.00027397,5]
[341034780,1730293846016,-3000.0,0.00027397,2]
[341034781,1730293846025,-856.67163,0.00027397,2]
[341034782,1730293846035,-500.0,0.00027397,5]
[341034783,1730293846044,-500.0,0.00027397,5]
[341034784,1730293846054,-500.0,0.00027397,5]
[341034785,1730293846063,-598.83,0.00027397,5]
[341034786,1730293846073,-500.0,0.00027397,5]
[341034788,1730293846083,-500.0,0.00027397,5]
[341034790,1730293846093,-500.0,0.00027397,5]
[341034792,1730293846102,-500.0,0.00027397,5]
[341034794,1730293846111,-500.0,0.00027397,5]
[341034796,1730293846120,-500.0,0.00027397,5]
[341034798,1730293846130,-171.66,0.00027397,5]
[341034800,1730293846139,-500.0,0.00027397,5]
[341034802,1730293846148,-525.2,0.00027397,5]
[341034804,1730293846157,-500.0,0.00027397,5]
[341034806,1730293846167,-400.7,0.00027397,5]
[341034808,1730293846176,-500.0,0.00027397,5]
[341034810,1730293846185,-500.0,0.00027397,5]
[341034812,1730293846194,-500.0,0.00027397,5]
[341034814,1730293846203,-500.0,0.00027397,5]
[341034816,1730293846213,-500.0,0.00027397,5]
[341034818,1730293846222,-500.0,0.00027397,5]
[341034820,1730293846231,-501.98599992,0.00027397,5]
[341034822,1730293846242,-500.0,0.00027397,5]
[341034824,1730293846251,-1476.22,0.00027397,3]
[341034827,1730293846262,-408.55,0.00027397,5]
[341034829,1730293846271,-500.0,0.00027397,5]
[341034831,1730293846281,-212.39187338,0.00027571,2]
[341034833,1730293846293,-182.644017,0.00027605,2]
[341034835,1730293846302,-182.644017,0.00027612,2]
[341034837,1730293846311,-182.644017,0.0002762,2]
[341034839,1730293846320,-182.644017,0.00027627,2]
[341034841,1730293846330,-182.644017,0.00027634,2]
[341034843,1730293846339,-151.0,0.00027641,7]
[341034845,1730293846348,-151.0,0.00027641,7]
[341034848,1730293846362,-363.57425,0.00027641,7]
[341034849,1730293846371,-363.57425,0.00027641,7]
[341034852,1730293846381,-182.644017,0.00027642,2]
[341034853,1730293846391,-182.644017,0.00027649,2]
[341034855,1730293846401,-151.0,0.00027656,7]
[341034857,1730293846410,-182.644017,0.00027656,2]
[341034859,1730293846419,-317.16,0.0002766,3]
[341034864,1730293846548,-182.644017,0.00027663,2]
[341034865,1730293846558,-5000.0,0.00027669,2]
[341034866,1730293846567,-500.0,0.00027669,2]
[341034867,1730293846576,-151.0,0.00027669,7]
[341034868,1730293846586,-151.0,0.00027669,7]
[341034870,1730293846601,-5000.0,0.0002767,2]
[341034872,1730293846610,-151.0,0.0002767,7]
[341034874,1730293846620,-500.0,0.0002767,2]
[341034876,1730293846629,-173.102934,0.0002767,7]
[341034878,1730293846638,-173.102934,0.0002767,7]
[341034880,1730293846647,-151.0,0.0002767,7]
[341034882,1730293846656,-182.644017,0.00027671,2]
[341034884,1730293846665,-500.0,0.00027671,5]
[341034886,1730293846674,-500.0,0.00027671,5]
[341034888,1730293846684,-500.0,0.00027671,5]
[341034890,1730293846693,-151.0,0.00027671,7]
[341034892,1730293846702,-151.0,0.00027671,7]
[341034894,1730293846712,-213.120934,0.00027671,7]
[341034896,1730293846722,-240.01,0.00027671,5]
[341034898,1730293846732,-151.0,0.00027671,7]
[341034901,1730293846742,-151.0,0.00027671,7]
[341034903,1730293846752,-500.0,0.00027671,5]
[341034904,1730293846761,-500.0,0.00027671,5]
[341034906,1730293846770,-363.57425,0.00027671,7]
[341034908,1730293846779,-363.57425,0.00027671,7]
[341034910,1730293846788,-469.23,0.00027671,5]
[341034912,1730293846797,-512.05,0.00027671,5]
[341034914,1730293846806,-500.0,0.00027671,5]
[341034916,1730293846817,-500.0,0.00027671,5]
[341034918,1730293846826,-500.0,0.00027671,5]
[341034920,1730293846835,-500.0,0.00027671,5]
[341034922,1730293846844,-500.0,0.00027671,5]
[341034924,1730293846854,-151.0,0.00027671,7]
[341034926,1730293846864,-500.0,0.00027671,5]
[341034928,1730293846873,-153.340352,0.00027671,7]
[341034930,1730293846883,-151.0,0.00027671,7]
[341034932,1730293846892,-151.0,0.00027671,7]
[341034934,1730293846901,-238.37,0.00027671,5]
[341034936,1730293846910,-500.0,0.00027671,5]
[341034938,1730293846920,-500.0,0.00027671,5]
[341034940,1730293846928,-456.64,0.00027671,5]
[341034942,1730293846937,-500.0,0.00027671,5]
[341034944,1730293846946,-500.0,0.00027671,5]
[341034946,1730293846955,-500.0,0.00027671,5]
[341034948,1730293846965,-500.0,0.00027671,5]
[341034949,1730293846974,-580.66,0.00027671,5]
[341034950,1730293846983,-173.102934,0.00027671,7]
[341034951,1730293846994,-173.102934,0.00027671,7]
[341034952,1730293847004,-333.2,0.00027671,5]
[341034953,1730293847013,-151.0,0.00027671,7]
[341034954,1730293847022,-500.0,0.00027671,5]
[341034955,1730293847031,-500.0,0.00027671,5]
[341034956,1730293847041,-500.0,0.00027671,5]
[341034957,1730293847050,-318.59,0.00027671,5]
[341034958,1730293847059,-500.0,0.00027671,5]
[341034959,1730293847068,-402.14,0.00027671,5]
[341034960,1730293847078,-500.0,0.00027671,5]
[341034961,1730293847088,-1476.22,0.00027671,3]
[341034962,1730293847098,-218.19,0.00027671,5]
[341034963,1730293847108,-182.644017,0.00027678,2]
[341034964,1730293847117,-164.364599,0.00027678,7]
[341034965,1730293847126,-182.644017,0.00027685,2]
[341034966,1730293847136,-182.644017,0.00027692,2]
[341034967,1730293847145,-182.644017,0.000277,2]
[341034968,1730293847154,-182.644017,0.00027707,2]
[341034969,1730293847163,-182.644017,0.00027714,2]
[341034970,1730293847172,-182.644017,0.00027721,2]
[341034971,1730293847182,-182.644017,0.00027729,2]
[341034972,1730293847192,-452.28,0.00027733,10]
[341034973,1730293847201,-182.644017,0.00027736,2]
[341034974,1730293847210,-500.0,0.00027741,5]
[341034975,1730293847220,-500.0,0.00027741,5]
[341034976,1730293847238,-500.0,0.00027741,5]
[341034977,1730293847250,-500.0,0.00027741,5]
[341034978,1730293847262,-500.0,0.00027741,5]
[341034979,1730293847271,-500.0,0.00027741,2]
[341034980,1730293847281,-501.28117775,0.00027743,5]
[341034981,1730293847291,-415.25689853,0.00027743,5]
[341034982,1730293847301,-151.0,0.00027743,7]
[341034983,1730293847310,-156.894592,0.00027743,7]
[341034984,1730293847320,-363.57425,0.00027743,7]
[341034985,1730293847329,-363.57425,0.00027743,7]
[341034986,1730293847339,-182.644017,0.00027743,2]
[341034987,1730293847348,-161.342,0.0002794,2]
[341034988,1730293847358,-500.0,0.00027943,2]
[341034989,1730293847367,-500.0,0.00027945,5]
[341034990,1730293847377,-198.76,0.00027945,5]
[341034991,1730293847387,-508.03,0.00027945,5]
[341034992,1730293847396,-508.18032239,0.00027945,5]
[341034993,1730293847406,-500.0,0.00027945,5]
[341034994,1730293847415,-500.0,0.00027945,5]
[341034995,1730293847425,-315.70862463,0.00027945,5]
[341034996,1730293847435,-500.0,0.00027945,5]
[341034997,1730293847445,-244.69,0.00027945,5]
[341034998,1730293847455,-265.10294,0.00027945,7]
[341034999,1730293847464,-500.0,0.00027945,5]
[341035000,1730293847474,-500.0,0.00027945,5]
[341035001,1730293847484,-500.0,0.00027945,5]
[341035002,1730293847495,-191.81,0.00027945,5]
[341035003,1730293847504,-500.0,0.00027945,5]
[341035004,1730293847514,-500.0,0.00027945,5]
[341035005,1730293847523,-284.1,0.00027945,5]
[341035006,1730293847533,-500.0,0.00027945,5]
[341035007,1730293847542,-500.0,0.00027945,5]
[341035008,1730293847552,-500.0,0.00027945,5]
[341035009,1730293847561,-161.93,0.00027945,5]
[341035010,1730293847572,-500.0,0.00027945,5]
[341035011,1730293847582,-1476.22,0.00027945,3]
[341035012,1730293847595,-150.112233,0.00028,20]
[341035013,1730293847605,-150.112233,0.00028,16]
[341035014,1730293847615,-500.0,0.00028045,5]
[341035015,1730293847624,-500.0,0.00028117,2]
[341035016,1730293847634,-239.56,0.00028219,5]
[341035017,1730293847643,-151.0,0.00028219,7]
[341035018,1730293847653,-363.57425,0.00028219,7]
[341035019,1730293847662,-363.57425,0.00028219,7]
[341035020,1730293847672,-237.50137086,0.00028219,5]
[341035021,1730293847682,-500.0,0.00028219,5]
[341035022,1730293847691,-500.0,0.00028219,5]
[341035023,1730293847700,-383.92,0.00028219,5]
[341035024,1730293847710,-151.0,0.00028219,7]
[341035025,1730293847719,-151.0,0.00028219,7]
[341035026,1730293847729,-155.58,0.00028219,5]
[341035027,1730293847738,-500.0,0.00028219,5]
[341035028,1730293847748,-500.0,0.00028219,5]
[341035029,1730293847758,-446.80293596,0.00028219,5]
[341035030,1730293847767,-173.102934,0.00028219,7]
[341035031,1730293847776,-173.102934,0.00028219,7]
[341035032,1730293847786,-151.0,0.00028219,7]
[341035033,1730293847795,-512.29,0.00028219,5]
[341035034,1730293847805,-500.0,0.00028219,5]
[341035035,1730293847816,-500.0,0.00028219,5]
[341035036,1730293847827,-231.34,0.00028219,5]
[341035037,1730293847838,-1476.22,0.00028219,3]
[341035038,1730293847847,-500.0,0.00028389,5]
[341035039,1730293847858,-305.0,0.000284,120]
[341035040,1730293847871,-500.0,0.00028492,2]
[341035041,1730293847881,-500.0,0.00028493,5]
[341035042,1730293847891,-500.0,0.00028493,5]
[341035043,1730293847901,-389.88,0.00028493,5]
[341035044,1730293847911,-500.0,0.00028493,5]
[341035045,1730293847920,-505.32,0.00028493,5]
[341035046,1730293847930,-500.0,0.00028493,5]
[341035047,1730293847940,-1476.22,0.00028493,3]